Cogmind - Beta 15 @@@ ROGUE MODE // 2025.05.29 @ 02:22:31 Player: LeipeMeuteLeider Result: Destroyed by 9S-QTL(R) with Subdweller Beam Cannon Performance ------------- Evolutions (0) 0 Regions Visited (2) 400 Robots Destroyed (11) 55 Value Destroyed (275) 275 Prototype IDs (0) 0 Alien Tech Used (0) 0 Bonus (0) 0 TOTAL SCORE: 730 Bonus ------- None Cogmind --------- Core Integrity 0/250 Matter 260/300 Energy 26/100 System Corruption 0% Temperature Warm (142) Movement Core (200) Ox3 Location -10/Subcaves Parts ------- > --- POWER (1) -------- (None) > --- PROPULSION (2) --- (None) > --- UTILITY (2) ------ Subdweller Optics > --- WEAPON (2) ------- Subdweller Beam Cannon Flamer > --- INVENTORY (5) ---- Subdweller Power Source Subdweller Optics Assault Rifle Peak State ------------ > --- POWER ------------ Subdweller Power Source > --- PROPULSION ------- Aluminum Leg Aluminum Leg > --- UTILITY ---------- Subdweller Optics Seismic Detector > --- WEAPON ----------- Subdweller Laser Subdweller Machine Gun > --- INVENTORY -------- Ion Engine Assault Rifle Light Assault Rifle Mining Laser Flamer [Rating: 11] Favorites ----------- Power Ion Engine Engine Ion Engine Propulsion Aluminum Leg Leg Aluminum Leg Utility Seismic Detector Device Seismic Detector Weapon Assault Rifle Energy Gun Subdweller Laser Energy Cannon Subdweller Beam Cannon Ballistic Gun Assault Rifle Ballistic Cannon Battle Cannon Special Weapon Mining Laser Build | -11 -10 -10 ------- Run | Yrd Mat Sub Slots Evolved . | . . . Power . | . . . Propulsion . | . . . Utility . | . . . Weapon . | . . . Parts Attached 21 | 9 1 11 Power 4 | 2 . 2 Engine 4 | 2 . 2 Core . | . . . Reactor . | . . . Propulsion 2 | 2 . . Treads . | . . . Leg 2 | 2 . . Wheel . | . . . Hover . | . . . Flight . | . . . Utility 6 | 2 . 4 Device 6 | 2 . 4 Storage . | . . . Processor . | . . . Hackware . | . . . Protection . | . . . Artifact . | . . . Weapon 9 | 3 1 5 Energy Gun 1 | . . 1 Energy Cannon 1 | . . 1 Ballistic Gun 4 | 3 . 1 Ballistic Cannon 1 | . . 1 Launcher . | . . . Special Weapon 2 | . 1 1 Impact Weapon . | . . . Slashing Weapon . | . . . Piercing Weapon . | . . . Special Melee Weapon . | . . . Unidentified Prototypes . | . . . Parts Lost 8 | . . 8 Power 2 | . . 2 Propulsion 2 | . . 2 Utility 2 | . . 2 Weapon 2 | . . 2 Highest Loss Streak 6 | . . 6 To Critical Strikes 1 | . . 1 Average Backups 4 | 2 5 4 Power . | . 1 . Propulsion . | . . . Utility . | . 2 . Weapon 2 | 1 2 3 Tool/Special . | . . . Unused Backups 2 | . . 2 Power 1 | . . 1 Propulsion . | . . . Utility 1 | . . 1 Weapon . | . . . Tool/Special . | . . . Average Slot Usage (%) 97 | . 100 96 Engine 12 | . 14 12 Leg 27 | . 28 27 Device 27 | . 28 27 Energy Gun 10 | . . 11 Ballistic Gun 14 | . 23 14 Ballistic Cannon 1 | . . 1 Peak Build Rating 11 | 9 9 11 Average Rating 8 | 6 9 9 On Entrance 6 | . 9 9 Naked Turns . | . . . Heaviest Build 16 | 11 11 16 Greatest Support 20 | 20 20 20 Greatest Overweight (x) 3 | . . 3 Average Overweight (x) . | . . . Largest Inventory Capacity 5 | 5 5 5 Average Capacity 5 | 5 5 5 Most Carried 5 | 5 5 5 Average Carried 4 | 2 5 4 Final Capacity 5 | 5 5 5 Final Carried 5 | 5 5 3 Class Distribution -------------------- 100% | Mutant Dominant Class ---------------- Mutant | -10/Materials Mutant | -10/Subcaves Resources | -11 -10 -10 ----------- Run | Yrd Mat Sub Matter Collected 564 | 342 . 222 Remotely . | . . . Salvage Created 356 | 110 . 246 Parts 35 | 14 . 21 Haulers Intercepted . | . . . Recyclers Shooed . | . . . Parts Field Recycled . | . . . Retrieved Matter . | . . . Parts Self-Destructed 9 | . . 9 Prevented . | . . . Kills | -11 -10 -10 ------- Run | Yrd Mat Sub Combat Hostiles Destroyed 6 | . . 6 Guns 6 | . . 6 Classes Destroyed 2 | 1 . 1 Tunneler 5 | 5 . . Subdweller 6 | . . 6 Best Kill Streak 3 | 3 . 2 Combat Bots Only 2 | . . 2 Max Kills in Single Turn 1 | 1 . 1 Gunslinging . | . . . Exploded . | . . . Melee . | . . . Uniques/NPCs Destroyed . | . . . Combat | -11 -10 -10 -------- Run | Yrd Mat Sub Hostile Shots Fired 50 | . . 50 Missed 11 | . . 11 Hits 39 | . . 39 Projectile 39 | . . 39 Critical Strikes 2 | . . 2 Damage Taken 961 | . . 961 Core 270 | . . 270 Absorbed by Shields . | . . . Core Remaining (%) 100 | 100 . . Volleys Fired 47 | 12 1 34 Largest 2 | 2 1 2 Hottest 180 | 40 100 180 Shots Fired 89 | 24 1 64 Gun 80 | 24 . 56 Cannon 7 | . . 7 Launcher . | . . . Special 2 | . 1 1 Kinetic 69 | 24 . 45 Thermal 20 | . 1 19 Explosive . | . . . Electromagnetic . | . . . Robot Hit Streak 25 | 2 . 25 Robot Miss Streak 2 | 2 . 2 Penetration Max . | . . . Secondary Targets . | . . . Shots Hit Robots 52 | 10 . 42 Core Hits 18 | 5 . 13 Critical Kills . | . . . Critical Parts Destroyed . | . . . Critical Strikes . | . . . Melee Attacks . | . . . Impact . | . . . Slashing . | . . . Piercing . | . . . Sneak Attacks . | . . . Combat Hostiles . | . . . Follow-up Attacks . | . . . Damage Inflicted 729 | 124 . 605 Guns 617 | 124 . 493 Cannons 101 | . . 101 Explosions . | . . . Melee . | . . . Ramming . | . . . Kinetic 500 | 124 . 376 Thermal 229 | . . 229 Explosive . | . . . Electromagnetic . | . . . Impact . | . . . Slashing . | . . . Piercing . | . . . Highest Corruption . | . . . Average Corruption . | . . . Corruption Purged . | . . . Corruption Blocked . | . . . Overload Shots . | . . . Overflow Damage . | . . . Projectiles . | . . . Explosions . | . . . Melee . | . . . Knockbacks 2 | . . 2 Impact . | . . . Kinetic 2 | . . 2 Secondary . | . . . Self-Inflicted Damage . | . . . Shots . | . . . Rammed . | . . . Targets Rammed . | . . . Kicked . | . . . Crushed . | . . . Highest Temperature 261 | . 20 261 Average Temperature 107 | . 10 151 Received Heat Transfer 455 | . . 455 Siege Activations . | . . . Martial Activations . | . . . Shielding Activations . | . . . Robots Disrupted 1 | . . 1 Combat Hostiles 1 | . . 1 Robots Corrupted . | . . . Combat Hostiles . | . . . Parts Fried . | . . . Impact Corruptions . | . . . Robots Melted . | . . . Combat Hostiles . | . . . Parts Melted . | . . . Heat Transferred 342 | . . 342 Parts Sabotaged . | . . . Parts Stolen . | . . . Parts Stripped . | . . . Power Chain Reactions . | . . . Alert | -11 -10 -10 ------- Run | Yrd Mat Sub Maximum Alert Level . | . . . Low Security (%) 100 | 100 100 . Level 1 . | . . . Level 2 . | . . . Level 3 . | . . . Level 4 . | . . . Level 5 . | . . . High Security . | . . . Max Security . | . . . Peak Influence 10 | 10 4 . Initial 3 | . 3 . Average 1 | 1 3 . Influence Increases 26 | 25 1 . Destroy 0b10 Robot/NC 25 | 25 . . Destroy Structure 1 | . 1 . Influence Decreases 26 | 20 2 4 Entered New Map 5 | . 2 3 Time Decay 21 | 20 . 1 Squads Dispatched . | . . . Investigation . | . . . Extermination . | . . . Reinforcement . | . . . Assault . | . . . Garrison . | . . . Intercept . | . . . Searches Triggered . | . . . Construction Impeded . | . . . Haulers Reinforced . | . . . Active Scanning Responses . | . . . Cargo Convoy Interrupts . | . . . Stealth | -11 -10 -10 --------- Run | Yrd Mat Sub Distress Signals . | . . . Communications Jammed . | . . . Distress Signals . | . . . Times Spotted 9 | . . 9 Peak Tracking Total 2 | . . 2 Tactical Retreats 1 | . . 1 Traps | -11 -10 -10 ------- Run | Yrd Mat Sub Traps Triggered . | . . . Indirectly . | . . . Trap Hack Attempts . | . . . Triggered . | . . . Disarmed . | . . . Reprogrammed . | . . . Reused . | . . . Traps Extracted . | . . . Installed . | . . . Triggered . | . . . Machines | -11 -10 -10 ---------- Run | Yrd Mat Sub Machines Disabled . | . . . Max in Single Turn . | . . . Machines Repaired . | . . . Machines Dismantled . | . . . Machines Sabotaged . | . . . Overloaded Fab Kills . | . . . Hacking | -11 -10 -10 --------- Run | Yrd Mat Sub Machines Accessed 1 | . 1 . Terminals . | . . . Fabricators . | . . . Repair Stations . | . . . Recycling Units 1 | . 1 . Scanalyzers . | . . . Garrison Access . | . . . Total Hacks 1 | . 1 . Successful 1 | . 1 . Failed . | . . . Catastrophic . | . . . Database Lockouts . | . . . Manual . | . . . Terminals . | . . . Fabricators . | . . . Repair Stations . | . . . Recycling Units 1 | . 1 . Scanalyzers . | . . . Garrison Access . | . . . Terminal Hacks . | . . . Fabricator Hacks . | . . . Repair Station Hacks . | . . . Recycling Unit Hacks 1 | . 1 . Retrieve Components 1 | . 1 . Scanalyzer . | . . . Garrison Access Hacks . | . . . Unauthorized Hacks . | . . . Terminals . | . . . Fabricators . | . . . Repair Stations . | . . . Recycling Units . | . . . Scanalyzers . | . . . Garrison Access . | . . . Data Cores Recovered . | . . . Used . | . . . Hacking Detections . | . . . Full Trace Events . | . . . Feedback Events . | . . . Feedback Blocked . | . . . Robot Schematics Acquired . | . . . Robots Built . | . . . Authchips . | . . . Time . | . . . Total Robot Build Rating . | . . . Part Schematics Acquired . | . . . Parts Built . | . . . Authchips . | . . . Time . | . . . Total Part Build Rating . | . . . Parts Repaired . | . . . Time . | . . . Parts Recycled . | . . . Recycled Matter . | . . . Retrieved Matter . | . . . Retrieved Components 2 | . 2 . Parts Scanalyzed . | . . . Part Schematics Acquired . | . . . Parts Damaged . | . . . Bothacking | -11 -10 -10 ------------ Run | Yrd Mat Sub Used RIF Installer . | . . . Robots Hacked . | . . . Non-combat . | . . . Combat . | . . . Robot Hacks Applied . | . . . Relay Couplers Released . | . . . Fabnet Peak Effective % . | . . . Robots Rewired . | . . . Allies Hacked . | . . . Hacks Repelled . | . . . Allies | -11 -10 -10 -------- Run | Yrd Mat Sub Total Allies . | . . . Largest Group . | . . . Highest-Rated Group . | . . . Highest-Rated Ally . | . . . Total Orders . | . . . Ally Attacks . | . . . Total Damage . | . . . Kills . | . . . Allies Corrupted . | . . . Allies Melted . | . . . Intel | -11 -10 -10 ------- Run | Yrd Mat Sub Active Infowar (turns) 899 | 82 17 800 Optics 670 | . . 670 Terrain 118 | 43 17 58 Seismic 873 | 82 17 774 Robot Analysis Total . | . . . Derelict Logs Recovered . | . . . Drone Launches . | . . . Drone Recoveries . | . . . Exploration | -11 -10 -10 ------------- Run | Yrd Mat Sub Turns Passed 949 | 132 17 800 Spaces Moved 619 | 70 10 539 Core 6 | 5 . 1 Treads . | . . . Legs 613 | 65 10 538 Wheels . | . . . Hover . | . . . Flight . | . . . Fastest Speed 50 | 50 120 120 Average Speed 119 | 115 120 120 Slowest Speed 200 | 120 120 200 Overloaded Moves . | . . . Propulsion Burnouts . | . . . Robots Hopped . | . . . Potential Cave-ins . | . . . Cave-ins Triggered . | . . . Exploration Rate (%) 13 | 4 4 33 Regions Visited 2 Branch Regions 1 Pre-discovered Areas . | . . . Known Exits Taken . | . . . Unknown Exits Taken 2 | 1 1 . Scrap Searched 2 | . . 2 Spaces Dug 1 | . 1 . Terrain Destroyed 1 | . 1 . Melee . | . . . Projectile 1 | . 1 . AOE . | . . . Terrain Rammed . | . . . Walls Destroyed . | . . . Machines Disabled . | . . . Actions | -11 -10 -10 --------- Run | Yrd Mat Sub Total 735 | 93 11 631 Wait 29 | . . 29 Move 617 | 69 9 539 Hop . | . . . Pick Up 8 | 3 . 5 Fast Attach 12 | 7 . 5 Attach 4 | . . 4 Detach 1 | . . 1 Swap 7 | 2 1 4 Drop 10 | . . 10 Fire 47 | 12 1 34 Melee . | . . . Ram . | . . . Kick . | . . . Crush . | . . . Escape Stasis . | . . . Rewire . | . . . Trap . | . . . Miscellaneous . | . . . Route ------- -11/Scrapyard -10/Materials -10/Subcaves History --------- Turn | Location | Event 7 | -11/Scrapyard | Discovered new exit (range 15) 133 | -11/Scrapyard | Entered Materials 145 | -10/Materials | Discovered new exit (range 3) 150 | -10/Materials | Entered Subcaves 306 | -10/Subcaves | Build established: Mutant 830 | -10/Subcaves | Core integrity fell below 50% 947 | -10/Subcaves | Core integrity fell below 20% 950 | -10/Subcaves | Destroyed by 9S-QTL(R) with Subdweller Beam Cannon Last Messages --------------- 00847_ Acquired Sub. Power Source. 00851_ Searching scrap... 00851_ Found Sub. Machine Gun. 00851_ Found Battle Cannon. 00851_ Found 55 Matter. 00853_ Dropped Sub. Laser. 00854_ Acquired Battle Cannon. 00883_ OB-OR7(u) tweaks Twisted Machinery. 00894_ U3-XZ2(z): "She is not going to be happy we haven't found any suitable candidates yet." 00919_ OB-OR7(u) tweaks Twisted Machinery. 00936_ NQ-YA7(R) knocked back. 00938_ Aluminum Leg destroyed. 00939_ 9S-QTL(R) knocked back. 00942_ Critical hit (Meltdown: +260). 00944_ Sub. Power Source destroyed. 00946_ Battle Cannon destroyed. 00946_ Sub. Machine Gun destroyed. 00948_ Seismic Detector destroyed. 00950_ NQ-YA7(R) shuts down. Map ----- +----------------------------------------------------+ | ?????????????????????????????????????????????? | | ?????????????????????????????????????????????? | | ?????????????????????????????????????????????? | | ?????????????????????????????????????????????? | | ?????????????????????????????????????????????? | | ?????????????????????????????????????????????? | | ?????????????????????????????????????????????? | | ?????????????????????????????????????????????? | | ?????????????????????????????????????????????? | | ?????????????????????????????????????????????? | | ?????????????????????????????????????????????? | | ?????????????????????????????????????????????? | | ?????????????????????????????????????????????? | | ?????????????????????????????????????????????? | | ?????????????????????????????????????????????? | | ?????????????????????????????????????????????? | | ?????????????????????????????????????????????? | | ?????????????????????????????????????????????? | | ???????????????????????##????????????????????? | | ??????????????????????# ##???????????????????? | | ??????????????????????" #??##???????????????? | | ??????????????????????" ##" #???????????????? | | ????????????????????##"% "?????????????????? | | ???????????????????##R"R " "????"????????????? | | ????????????????####" %#?""??#" ??????????? | | ???????????????## # @;#??"###" ???????????? | | ???????????????#"" #??""""" ???????????? | | ???????????????# "" ###"""""" "???????????? | | ???????????????# "" #### #?#""""######??????? | | ???????????????## "" ### #??#"""## #??????? | | ???????????????## ####""## #??????? | | ???????????????# """ ##?????? | | ???????????????# "" #?##??? | | ??????????????## " ## ##?? | | ??????????????# #?? | | ??????????????# ## #?? | | ??????????????# ###### ##?? | | ??????????????# #????### ##??? | | ??????????????# ??????##### ## #???? | | ??????????????## ?????????# ## #???? | | ???????????????# ?????##?## #???? | | ???????????????# ???# ## #???? | | ???????????????## ## ### #???? | | ????????????????# #?# ##???? | | ????????????????# ## ## #????? | | ???????????????? ## #????? | | ????????????????## #### ### ##???? | | ?????????????????# ????###??## #???? | | ?????????????????## ??????????# ###???? | | ??????????????????###??????????# ##?????? | +----------------------------------------------------+ Best States ------------- Heat Dissipation 25 Energy Generation 15 Energy Capacity 250 Matter Stores 300 Matter Capacity 300 Sight Range 21 Terrain Scan Range 16 Terrain Scan Density 10 Evasion (%) 55 Item Schematics ----------------- None Robot Schematics ------------------ None Fabricated ------------ Nothing Repaired ---------- Nothing Alien Tech Used ----------------- None Achievements -------------- None Challenges ------------ None Game ------ Seed LightningBiometalShifter Manual? 0 Play Time 00:12:44 Cumulative 53.2 hours Start 2025.05.29 @ 02:10:07 End 2025.05.29 @ 02:22:31 Sessions 1 Manual Loads 0 Difficulty Rogue Special Mode None Game No. 51 Rogue 51 Adventurer 0 Explorer 0 Win Type - Total 0 Types 0/0/0/0/0/0/0/0/0/0 Lore% 7 Gallery% 27 Achievement% 25 Wizard Run 0 Options --------- Layout 0 ASCII 0 Keyboard 0 Movement Mouse Keybinds 0 Fullscreen 1 Font 18/SmallcapsGlow Map View 38x25 Zoom Use 91% Tactical HUD 1 Map Filters NONE Filters NONE Steam 1 RUN: 31944ca4-202a-4ed2-979f-48f51d7d8f43